fUSD/lending_fUSD_20260227
["ID","MTS","AMOUNT","RATE_DAILY","PERIOD"]
[406756565,1772159448477,-168.0,0.00018544,2]
[406756566,1772159448486,-350.0,0.00018573,2]
[406756567,1772159448495,-168.0,0.00018585,2]
[406756568,1772159448505,-150.097,0.00018632,2]
[406756569,1772159448515,-150.0,0.00018632,2]
[406756570,1772159448527,-269.14,0.00018632,2]
[406756571,1772159448538,-1280.069,0.00018632,2]
[406756572,1772159448548,-921.0,0.00018632,2]
[406756573,1772159448558,-1211.0,0.00018632,2]
[406756574,1772159448568,-1041.0,0.00018632,2]
[406756575,1772159448578,-619.04,0.00018632,2]
[406756576,1772159448588,-3498.0,0.00018632,2]
[406756577,1772159448598,-510.83,0.00018666,2]
[406756578,1772159448607,-510.83,0.00018666,2]
[406756579,1772159448618,-510.83,0.00018666,2]
[406756580,1772159448628,-510.83,0.00018666,2]
[406756581,1772159448638,-510.83,0.00018666,2]
[406756582,1772159448649,-511.05251806,0.00018666,2]
[406756583,1772159448659,-500.0,0.00018666,2]
[406756584,1772159448669,-500.0,0.00018666,2]
[406756585,1772159448679,-500.0,0.00018666,2]
[406756586,1772159448689,-500.0,0.00018666,2]
[406756587,1772159448699,-553.06009095,0.00018666,2]
[406756588,1772159448709,-606.06,0.00018666,2]
[406756589,1772159448720,-606.06,0.00018666,2]
[406756590,1772159448729,-606.06,0.00018666,2]
[406756591,1772159448738,-606.06,0.00018666,2]
[406756592,1772159448747,-606.06,0.00018666,2]
[406756593,1772159448757,-606.23328586,0.00018666,2]
[406756594,1772159448766,-168.0,0.00018677,2]
[406756595,1772159448775,-1258.0,0.00018708,5]
[406756596,1772159448784,-1854.0,0.00018708,5]
[406756597,1772159448794,-168.0,0.00018734,2]
[406756598,1772159448808,-168.0,0.00018772,2]
[406756599,1772159448817,-2536.35203135,0.0001885,2]
[406756600,1772159448827,-168.0,0.0001885,2]
[406756601,1772159448836,-168.0,0.00018904,2]
[406756602,1772159448847,-1600.61174419,0.00018904,2]
[406756603,1772159448856,-168.0,0.00018916,2]
[406756604,1772159448866,-154932.08606462,0.00019,2]
[406756605,1772159448876,-192.77132253,0.00019,2]
[406756606,1772159448885,-151.0,0.00019,2]
[406756607,1772159448895,-151.0,0.00019,2]
[406756608,1772159448904,-151.0,0.00019,2]
[406756609,1772159448914,-350.0,0.00019,2]
[406756610,1772159448923,-151.0,0.00019,2]
[406756611,1772159448933,-222.140607,0.00019,2]
[406756612,1772159448943,-222.140607,0.00019,2]
[406756613,1772159448952,-222.140607,0.00019,2]
[406756614,1772159448961,-222.140607,0.00019,2]
[406756615,1772159448970,-151.0,0.00019,2]
[406756616,1772159448980,-151.0,0.00019,2]
[406756617,1772159448989,-151.0,0.00019,2]
[406756618,1772159448998,-913.996712,0.00019,2]
[406756619,1772159449008,-913.996712,0.00019,2]
[406756620,1772159449017,-913.996712,0.00019,2]
[406756621,1772159449026,-913.996712,0.00019,2]
[406756622,1772159449036,-252.774954,0.00019,2]
[406756623,1772159449045,-2104.97542029,0.00019,2]
[406756624,1772159449054,-422.72533856,0.00019019,2]
[406756625,1772159449063,-158.74414923,0.00019053,2]
[406756626,1772159449073,-277.25086,0.00019068,2]
[406756627,1772159449082,-277.25086,0.00019068,2]
[406756628,1772159449091,-277.25086,0.00019068,2]
[406756629,1772159449100,-277.25086,0.00019068,2]
[406756630,1772159449109,-460.325004,0.00019068,2]
[406756631,1772159449119,-460.325004,0.00019068,2]
[406756632,1772159449129,-460.325004,0.00019068,2]
[406756633,1772159449138,-460.325004,0.00019068,2]
[406756634,1772159449147,-241.903311,0.00019068,2]
[406756635,1772159449157,-241.903311,0.00019068,2]
[406756636,1772159449166,-241.903311,0.00019068,2]
[406756637,1772159449176,-241.903311,0.00019068,2]
[406756638,1772159449186,-151.534363,0.00019068,2]
[406756639,1772159449195,-1500.0,0.00019068,2]
[406756640,1772159449205,-348.12083667,0.00019068,2]
[406756641,1772159449214,-1505.1741474,0.00019068,2]
[406756642,1772159449223,-1500.0,0.00019068,2]
[406756643,1772159449233,-1500.0,0.00019068,2]
[406756644,1772159449243,-477.39243472,0.00019068,2]
[406756645,1772159449252,-609.4473265,0.00019068,2]
[406756646,1772159449261,-604.86883027,0.00019068,2]
[406756647,1772159449271,-1500.0,0.00019068,2]
[406756648,1772159449281,-1500.0,0.00019068,2]
[406756649,1772159449297,-812.58332591,0.00019068,2]
[406756650,1772159449307,-1500.0,0.00019068,2]
[406756651,1772159449316,-1392.28075611,0.00019068,2]
[406756652,1772159449325,-1500.0,0.00019068,2]
[406756653,1772159449335,-1500.0,0.00019068,2]
[406756654,1772159449344,-1009.97066749,0.00019068,2]
[406756655,1772159449354,-661.3512177,0.00019068,2]
[406756656,1772159449364,-1500.0,0.00019068,2]
[406756657,1772159449374,-1500.0,0.00019068,2]
[406756658,1772159449384,-1500.0,0.00019068,2]
[406756659,1772159449394,-565.63,0.00019178,30]
[406756660,1772159449403,-350.0,0.00019181,2]
[406756661,1772159449413,-168.0,0.00019198,2]
[406756662,1772159449423,-422.72533856,0.00019207,2]
[406756663,1772159449433,-504.0,0.00019306,5]
[406756664,1772159449443,-422.72533856,0.00019396,2]
[406756665,1772159449452,-152.8213546,0.00019419,2]
[406756666,1772159449462,-577.0,0.00019485,2]
[406756667,1772159449471,-355.39978581,0.00019496,3]
[406756668,1772159449481,-151.0,0.00019616,2]
[406756669,1772159449490,-151.0,0.00019616,2]
[406756670,1772159449500,-151.0,0.00019616,2]
[406756671,1772159449509,-2002.65524263,0.00019616,2]
[406756672,1772159449518,-2009.90880948,0.00019616,2]
[406756673,1772159449528,-1021.6494199,0.00019616,2]
[406756674,1772159449537,-514.72127682,0.00019616,2]
[406756675,1772159449547,-638.33965258,0.00019616,2]
[406756676,1772159449557,-504.11855424,0.00019616,2]
[406756677,1772159449567,-935.3578442,0.00019616,2]
[406756678,1772159449576,-2001.77670981,0.00019616,2]
[406756679,1772159449586,-1760.27551932,0.00019616,2]
[406756680,1772159449595,-2000.0,0.00019616,2]
[406756681,1772159449604,-240.02325887,0.0001973,2]
[406756682,1772159449614,-78909.1917836,0.00019787,2]
[406756683,1772159449630,-572.01969778,0.00019787,2]
[406756684,1772159449641,-1893.12,0.00019787,2]
[406756685,1772159449656,-1932.5291081,0.00019787,2]
[406756686,1772159449708,-468.29512219,0.00019787,2]
[406756687,1772159450337,-111.21851527,0.00019787,2]
[406756688,1772159932728,150.0,0.00015893,120]
[406756692,1772160117338,222.0,0.0001812,120]
[406756698,1772160631818,-1989.753255,7.945e-05,2]
[406756699,1772160631828,-154.50136837,8.342e-05,2]
[406756700,1772160631837,-195.0,8.74e-05,2]
[406756701,1772160631846,-199.68336594,8.74e-05,2]
[406756702,1772160631857,-50.31663406,8.74e-05,2]
[406756703,1772160631867,-195.0,8.884e-05,2]
[406756704,1772160631876,-195.0,8.884e-05,2]
[406756705,1772160631885,-195.0,8.884e-05,2]
[406756706,1772160631894,-289.67803666,8.884e-05,2]
[406756707,1772160631904,-300.0,0.00010299,2]
[406756708,1772160631913,-1200.0,0.00010299,2]
[406756709,1772160631923,-500.0,0.000103,2]
[406756710,1772160631932,-500.0,0.000103,2]
[406756711,1772160631941,-955.8640179,0.000103,2]
[406756712,1772160631951,-504.25316934,0.000103,2]
[406756713,1772160631960,-500.0,0.000103,2]
[406756714,1772160631970,-7671.676719,0.00010774,2]
[406756715,1772160631979,-501.84472279,0.00010829,2]
[406756716,1772160631990,-501.1294289,0.00010829,2]
[406756717,1772160632000,-500.0,0.00010829,2]
[406756718,1772160632009,-500.0,0.00010829,2]
[406756719,1772160632018,-500.58038656,0.00010829,2]
[406756720,1772160632027,-500.0,0.00010829,2]
[406756721,1772160632037,-500.0,0.00010829,2]
[406756722,1772160632047,-500.0,0.00010829,2]
[406756723,1772160632056,-250.0,0.00010995,2]
[406756724,1772160632065,-415.70658755,0.000113,3]
[406756725,1772160632075,-420.0,0.00011326,2]
[406756727,1772160632085,-1680.0,0.00011329,2]
[406756729,1772160632094,-262.95707822,0.00011377,2]
[406756731,1772160632104,-1000.0,0.00011377,2]
[406756733,1772160632117,-1000.0,0.00011377,2]
[406756736,1772160632126,-1000.0,0.00011377,2]
[406756739,1772160632135,-1000.0,0.00011377,2]
[406756742,1772160632145,-216.07799895,0.00011454,2]
[406756745,1772160632154,-151.0,0.00011461,2]
[406756748,1772160632163,-150.0,0.00011463,2]
[406756751,1772160632172,-5741.61845535,0.00011464,2]
[406756754,1772160632182,-40473.67587306,0.00011464,2]
[406756757,1772160632191,-1835560.9498045,0.00011464,2]
[406756760,1772160632203,-164439.0501955,0.00011464,2]
[406756762,1772160632212,-241.046664,0.00011564,2]
[406756764,1772160632221,-374.41,0.00011564,2]
[406756766,1772160632230,-9999.99,0.00011564,2]
[406756768,1772160632239,-150.99,0.00011564,2]
[406756770,1772160632249,-760.35774313,0.00011807,2]
[406756772,1772160632258,-222.0,0.00011924,2]
[406756774,1772160632267,-299.99,0.00011924,2]
[406756776,1772160632276,-9999.99,0.00011924,2]
[406756778,1772160632286,-1500.0,0.00011924,2]
[406756780,1772160632295,-1500.0,0.00011924,2]
[406756783,1772160632306,-1120.11025262,0.00011924,2]
[406756785,1772160632315,-1500.0,0.00011924,2]
[406756787,1772160632324,-5042.4,0.0001201,2]
[406756788,1772160632333,-587.0,0.00012455,2]
[406756790,1772160632343,-2351.0,0.00012462,2]
[406756791,1772160632352,-2000.0,0.00012472,2]
[406756792,1772160632362,-1631.91128682,0.00012472,2]
[406756793,1772160632371,-1766.7911613,0.00012472,2]
[406756794,1772160632383,-233.2088387,0.00012472,2]
[406756795,1772160632392,-255.0,0.00012529,2]
[406756796,1772160632402,-213.26045152,0.00012893,2]
[406756797,1772160632411,-830.45295709,0.0001292,2]
[406756798,1772160632421,-250047.10772769,0.0001292,2]
[406756799,1772160632433,-366783.07855162,0.0001292,2]
[406756800,1772160632444,-1254.41808677,0.0001292,2]
[406756801,1772160632456,-492.41777302,0.0001292,2]
[406756802,1772160632475,-644.83,0.0001292,2]
[406756803,1772160632486,-708.27235126,0.0001292,2]
[406756804,1772160632498,-1929.27379233,0.0001292,2]
[406756809,1772160637924,-296.61399423,0.0001292,2]
[406756810,1772160637934,-17288.78187697,0.0001292,2]
[406756811,1772160638031,-4384.08419692,0.0001292,2]
[406756812,1772160638087,-675.81,0.0001292,2]
[406756813,1772160638099,-14161.79383668,0.0001292,2]
[406756814,1772160638111,-1634.19576043,0.0001292,2]
[406756815,1772160638126,-820441.68784631,0.0001292,2]
[406756816,1772160638135,-2500.0,0.0001302,2]
[406756817,1772160638144,-505.72694533,0.0001302,2]
[406756818,1772160638155,-311.59,0.00013085,2]
[406756819,1772160638164,-500.0,0.0001312,2]
[406756820,1772160638173,-500.0,0.0001312,2]
[406756821,1772160638184,-500.0,0.0001312,2]
[406756822,1772160638193,-500.0,0.0001312,2]
[406756823,1772160638202,-500.0,0.0001312,2]
[406756824,1772160638212,-3000.0,0.00013568,2]
[406756826,1772160638230,-151.0,0.0001369,2]
[406756827,1772160638251,-151.0,0.0001369,2]
[406756828,1772160638271,-151.0,0.0001369,2]
[406756829,1772160638293,-151.0,0.0001369,2]
[406756830,1772160638302,-151.0,0.0001369,2]
[406756831,1772160638311,-151.0,0.0001369,2]
[406756832,1772160638321,-151.0,0.0001369,2]
[406756833,1772160638330,-151.0,0.0001369,2]
[406756834,1772160638339,-151.0,0.0001369,2]
[406756835,1772160638353,-151.0,0.0001369,2]
[406756836,1772160638363,-151.0,0.0001369,2]
[406756837,1772160638373,-151.0,0.0001369,2]
[406756838,1772160638382,-151.0,0.0001369,2]
[406756839,1772160638392,-151.0,0.0001369,2]
[406756840,1772160638401,-151.0,0.0001369,2]
[406756841,1772160638411,-151.0,0.0001369,2]
[406756842,1772160638420,-151.0,0.0001369,2]
[406756843,1772160638430,-151.0,0.0001369,2]
[406756844,1772160638440,-151.0,0.0001369,2]
[406756845,1772160638450,-151.0,0.0001369,2]
[406756846,1772160638460,-151.0,0.0001369,2]
[406756847,1772160638469,-151.0,0.0001369,2]
[406756848,1772160638479,-151.0,0.0001369,2]
[406756849,1772160638489,-151.0,0.0001369,2]
[406756850,1772160638498,-151.0,0.0001369,2]
[406756851,1772160638508,-151.0,0.0001369,2]
[406756852,1772160638517,-151.0,0.0001369,2]
[406756853,1772160638526,-151.0,0.0001369,2]
[406756854,1772160638536,-151.0,0.0001369,2]
[406756855,1772160638546,-151.0,0.0001369,2]
[406756856,1772160638555,-151.0,0.0001369,2]
[406756857,1772160638565,-151.0,0.0001369,2]
[406756858,1772160638574,-151.0,0.0001369,2]
[406756859,1772160638584,-151.0,0.0001369,2]
[406756860,1772160638593,-151.0,0.0001369,2]
[406756861,1772160638603,-151.0,0.0001369,2]
[406756862,1772160638612,-151.0,0.0001369,2]
[406756863,1772160638622,-151.0,0.0001369,2]
[406756864,1772160638632,-151.0,0.0001369,2]
[406756865,1772160638641,-151.0,0.0001369,2]
[406756866,1772160638650,-151.0,0.0001369,2]
[406756867,1772160638660,-151.0,0.0001369,2]
[406756868,1772160638670,-151.0,0.0001369,2]
[406756869,1772160638679,-151.0,0.0001369,2]
[406756870,1772160638689,-151.0,0.0001369,2]
[406756871,1772160638698,-151.0,0.0001369,2]
[406756872,1772160638707,-823.0,0.00013696,2]
[406756873,1772160638717,-500.0,0.00013698,2]
[406756874,1772160638727,-500.0,0.00013698,2]
[406756875,1772160638750,-500.0,0.00013698,2]
[406756876,1772160638761,-500.0,0.00013698,2]
[406756877,1772160638774,-500.0,0.00013698,2]
[406756878,1772160638792,-500.0,0.00013698,2]
[406756879,1772160638803,-500.0,0.00013698,2]
[406756880,1772160638814,-500.0,0.00013698,2]
[406756881,1772160638823,-500.0,0.00013698,2]
[406756882,1772160638833,-500.0,0.00013698,2]
[406756883,1772160638843,-500.0,0.00013698,2]
[406756884,1772160638852,-500.0,0.00013698,2]
[406756885,1772160638862,-500.0,0.00013698,2]
[406756886,1772160638872,-500.0,0.00013698,2]
[406756887,1772160638883,-576.25,0.00013698,2]
[406756888,1772160638896,-194.2,0.00013699,2]
[406756889,1772160638907,-161.83,0.00013699,2]
[406756890,1772160638917,-809.17,0.00013699,2]
[406756891,1772160638928,-433.0,0.00013699,2]
[406756892,1772160638938,-5146.9,0.000137,2]
[406756893,1772160638948,-5146.9,0.000137,2]
[406756894,1772160638958,-5146.9,0.000137,2]
[406756895,1772160638967,-5146.9,0.000137,2]
[406756896,1772160638977,-5146.9,0.000137,2]
[406756897,1772160638986,-3292.0,0.00013708,2]
[406756898,1772160638996,-5556.85,0.00013842,2]
[406756899,1772160639008,-166.66,0.00014103,2]
[406756900,1772160639018,-3500.0,0.00014116,2]
[406756901,1772160639028,-40473.67587305,0.00014512,2]
[406756902,1772160639037,-166.66,0.00014568,2]
[406756903,1772160639046,-151.0,0.00014634,2]
[406756904,1772160639056,-151.0,0.00014634,2]
[406756905,1772160639066,-4000.0,0.00014664,2]
[406756906,1772160639077,-2383.69,0.00014902,2]
[406756907,1772160639087,-160.0,0.0001495,2]
[406756908,1772160639096,-174.00015664,0.0001495,2]
[406756909,1772160639107,-736.0,0.00014971,2]
[406756910,1772160639119,-6744.6228,0.00014987,2]
[406756911,1772160639129,-166.66,0.00015034,2]
[406756912,1772160639139,-1152.0,0.00015061,2]
[406756913,1772160639150,-4609.0,0.00015079,2]
[406756914,1772160639163,-27238.49,0.00015087,2]
[406756915,1772160639172,-500.0,0.00015111,2]
[406756916,1772160639183,-504.0,0.0001512,2]
[406756917,1772160639193,-2585.22400897,0.00015212,2]
[406756918,1772160639203,-166.66,0.00015499,2]
[406756919,1772160639213,-500.0,0.00015719,2]
[406756920,1772160639223,-207.74,0.0001572,2]
[406756921,1772160639233,-2211.62,0.00015826,2]
[406756922,1772160639242,-200.0,0.00015828,2]
[406756923,1772160639255,-150.0,0.00015893,2]
[406756924,1772160639265,-47910.09,0.00015916,2]
[406756925,1772160639275,-166.66,0.00015965,2]
[406756926,1772160639285,-5741.61845529,0.00016112,2]
[406756927,1772160639295,-9999.99,0.00016116,2]
[406756928,1772160639305,-1500.0,0.00016125,2]
[406756929,1772160639314,-2714.311323,0.00016337,7]
[406756930,1772160639324,-1252.0,0.00016358,2]
[406756931,1772160639335,-845.0,0.000164,2]
[406756932,1772160639345,-166.66,0.0001643,2]
[406756933,1772160639354,-12444.723794,0.00016479,7]
[406756934,1772160639364,-1613.0,0.00016562,2]
[406756935,1772160639374,-5973.0,0.00016587,2]
[406756936,1772160639384,-165.53,0.00016712,2]
[406756937,1772160639393,-160.0,0.0001672,2]
[406756938,1772160639403,-195.0,0.00017104,2]
[406756939,1772160639413,-504.0,0.00017357,4]
[406756940,1772160639423,-845.0,0.0001736,2]
[406756941,1772160639432,-422.72533856,0.000174,2]
[406756942,1772160639442,-160.0,0.0001744,2]
[406756943,1772160639451,-274.32735207,0.00017517,2]
[406756944,1772160639461,-668.65185757,0.00017517,2]
[406756945,1772160639470,-500.0,0.00017517,2]
[406756946,1772160639480,-500.0,0.00017517,2]
[406756947,1772160639489,-500.0,0.00017517,2]
[406756948,1772160639499,-500.0,0.00017517,2]
[406756949,1772160639511,-500.0,0.00017517,2]
[406756950,1772160639521,-500.0,0.00017517,2]
[406756951,1772160639531,-500.0,0.00017517,2]
[406756952,1772160639545,-500.0,0.00017517,2]
[406756953,1772160639555,-189.804718,0.00017517,2]
[406756954,1772160639565,-40473.67587305,0.00017561,2]
[406756955,1772160639575,-326.23592954,0.00017572,2]
[406756956,1772160639585,-923.487,0.00017576,2]
[406756957,1772160639595,-332.257,0.00017576,2]
[406756958,1772160639607,-2500.0,0.00017648,2]
[406756959,1772160639617,-160.0,0.0001768,2]
[406756960,1772160639627,-845.0,0.00017744,2]
[406756961,1772160639637,-151.0,0.00017745,2]
[406756962,1772160639647,-1060.61013067,0.00017747,5]
[406756963,1772160639657,-1049.33195524,0.00017747,5]
[406756964,1772160639667,-208.0,0.00017809,2]
[406756966,1772160639889,-150.0,0.00017862,2]
[406756967,1772160639900,-154.03998369,0.00017862,2]
[406756968,1772160639909,-1855.0,0.00017883,2]
[406756969,1772160639920,-192.10988636,0.00017973,2]
[406756970,1772160639930,-175.65842633,0.00017973,2]
[406756971,1772160639940,-308.59204947,0.00017973,2]
[406756972,1772160639949,-1262.0,0.00017985,2]
[406756973,1772160639959,-200.0,0.00018128,2]
[406756974,1772160639968,-2258.0,0.00018213,2]
[406756975,1772160639979,-12292.46,0.00018225,2]
[406756976,1772160639988,-2353.0,0.00018496,2]
[406756977,1772160639998,-19300.54734165,0.00018611,2]
[406756979,1772160640008,-5000.0,0.00018611,2]
[406756980,1772160640017,-4844.0,0.00018685,2]
[406756981,1772160640027,-436.53156505,0.00018687,2]
[406756982,1772160640036,-487.0,0.00018711,2]
[406756983,1772160640046,-487.0,0.00018711,2]
[406756984,1772160640057,-487.0,0.00018711,2]
[406756985,1772160640067,-487.0,0.00018711,2]
[406756986,1772160640083,-487.0,0.00018711,2]
[406756987,1772160640092,-487.0,0.00018711,2]
[406756988,1772160640103,-487.0,0.00018711,2]
[406756989,1772160640116,-487.0,0.00018711,2]
[406756990,1772160640126,-506.99,0.00018711,2]
[406756991,1772160640136,-500.0,0.00018787,7]
[406756992,1772160640147,-433.97,0.00018787,7]
[406756993,1772160640157,-3498.0,0.00018811,2]
[406756994,1772160640167,-1041.0,0.00018811,2]
[406756995,1772160640176,-618.0,0.00018811,2]
[406756996,1772160640188,-1340.0,0.00018811,2]
[406756997,1772160640199,-1277.0,0.00018811,2]
[406756998,1772160640208,-921.0,0.00018811,2]
[406756999,1772160640217,-1211.0,0.00018811,2]
[406757000,1772160640227,-464.491,0.00018811,2]
[406757001,1772160640237,-5983.0,0.00018811,2]
[406757002,1772160640246,-1776.0,0.00019119,5]
[406757003,1772160640256,-1205.0,0.00019119,5]
[406757004,1772160640268,-537.34,0.00019178,30]
[406757005,1772160640278,-152.8213546,0.00019419,2]
[406757006,1772160640288,-504.0,0.00019594,6]
[406757007,1772160640298,-1048.48,0.000196,2]
[406757008,1772160640307,-366856.8457626,0.00019617,2]
[406757009,1772160640317,-32885.2992,0.00019687,2]
[406757010,1772160640327,-1000.0,0.00019687,2]
[406757011,1772160640336,-176.35670962,0.00019787,2]
[406757012,1772160640346,-500.0,0.00019787,2]
[406757013,1772160640355,-2020.0,0.000198,2]
[406757014,1772160640365,-419.4117279,0.0002,2]
[406757015,1772160640374,-919.0,0.00020028,2]
[406757016,1772160640383,-1000.0,0.00020051,7]
[406757017,1772160640392,-3161.6837702,0.0002017,2]
[406757018,1772160640402,-160.0,0.00020206,2]
[406757019,1772160640411,-816.0,0.00020206,2]
[406757020,1772160640420,-152.8213546,0.00020302,2]
[406757021,1772160640430,-40473.67587305,0.00020609,2]
[406757022,1772160640439,-705.4670059,0.0002068,2]
[406757023,1772160640449,-5741.61845529,0.0002076,2]
[406757024,1772160640459,-400.0,0.00021,2]
[406757025,1772160640468,-152.8213546,0.00021184,2]
[406757026,1772160640477,-19300.54734157,0.00021188,2]
[406757027,1772160640487,-152.0,0.0002149,14]
[406757028,1772160640496,-152.01,0.0002149,14]
[406757029,1772160640508,-167.9325,0.0002149,14]
[406757030,1772160640517,-500.0,0.00021519,2]
[406757031,1772160640527,-10000.0,0.00021592,2]
[406757032,1772160640537,-500.0,0.00021691,2]
[406757033,1772160640546,-500.0,0.00021691,2]
[406757034,1772160640555,-366856.8457626,0.00021703,2]
[406757035,1772160640568,-151.0,0.00021782,2]
[406757036,1772160640587,-151.0,0.00021782,2]
[406757037,1772160640598,-151.0,0.00021782,2]
[406757038,1772160640609,-151.0,0.00021782,2]
[406757039,1772160640619,-6333.393089,0.00021782,7]
[406757040,1772160640630,-3498.0,0.00021811,2]
[406757041,1772160640646,-1041.0,0.00021811,2]
[406757042,1772160640661,-618.0,0.00021811,2]
[406757043,1772160640671,-1340.0,0.00021811,2]
[406757044,1772160640681,-1277.0,0.00021811,2]
[406757045,1772160640691,-921.0,0.00021811,2]
[406757046,1772160640701,-1211.0,0.00021811,2]
[406757047,1772160640711,-413.0,0.00021811,2]
[406757048,1772160640722,-5983.0,0.00021811,2]
[406757049,1772160640732,-504.0,0.00021832,8]
[406757050,1772160640742,-5000.0,0.00021918,2]
[406757051,1772160640755,-150.0,0.00021918,2]
[406757052,1772160640766,-150.0,0.00021918,2]
[406757053,1772160640776,-150.0,0.00021918,2]
[406757054,1772160640786,-150.0,0.00021918,2]
[406757055,1772160640796,-200.45,0.00021918,2]
[406757056,1772160640806,-29037.688853,0.00021972,30]
[406757057,1772160640815,-167.9325,0.00022038,14]
[406757058,1772160640825,-537.34,0.00022062,30]
[406757059,1772160640834,-152.8213546,0.00022067,2]
[406757060,1772160640844,-2211.62,0.00022156,2]
[406757061,1772160640856,-204.19,0.00022365,7]
[406757062,1772160640866,-167.9325,0.00022586,14]
[406757063,1772160640876,-152.8213546,0.0002295,2]
[406757064,1772160640886,-209.66503795,0.00023,2]
[406757065,1772160640895,-450.0,0.00023,2]
[406757066,1772160640905,-150.0,0.00023014,2]
[406757067,1772160640914,-150.0,0.00023014,2]
[406757068,1772160640923,-436.531565,0.00023213,2]
[406757069,1772160640933,-500.0,0.00023595,2]
[406757070,1772160640943,-500.0,0.00023595,2]
[406757071,1772160640952,-235.2740385,0.00023627,11]
[406757072,1772160640962,-40473.67587305,0.00023658,2]
[406757073,1772160640971,-19300.54734157,0.00023764,2]
[406757074,1772160640980,-287254.15360844,0.0002379,2]
[406757075,1772160641036,-13391.31489404,0.0002379,2]
[406757076,1772160641172,-366.8548453,0.00018811,2]
[406757078,1772160643009,-359.67734222,0.00018592,2]
[406757079,1772160643064,-455.53265778,0.00018592,2]
[406757080,1772160643074,-2089.1451547,0.00018811,2]
[406757081,1772160643083,-2456.0,0.00021811,2]
[406757082,1772160643093,-151.16289396,0.00022156,2]
[406757083,1772160643103,-151.16289396,0.00023658,2]
[406757084,1772160643115,-151.16289396,0.00023658,2]
[406757085,1772160643127,-151.16289396,0.00023764,2]
[406757086,1772160643136,-66211.37726012,0.0002379,2]
[406757087,1772160643146,-151.16289396,0.0002379,2]
[406757088,1772160643158,-1155.0,0.0002379,10]
[406757089,1772160643168,-1702.0,0.0002379,10]
[406757090,1772160643178,-5042.4,0.00023791,2]
[406757091,1772160643192,-1170.94419833,0.000238,16]
[406757092,1772160643202,-311.59,0.00023814,2]
[406757093,1772160643212,-152.8213546,0.00023833,2]
[406757094,1772160643221,-167.93,0.00023956,14]
[406757095,1772160643231,-504.0,0.00024069,10]
[406757096,1772160643239,-150.0,0.00024548,2]
[406757097,1772160643249,-150.0,0.00024548,2]
[406757098,1772160643259,-150.0,0.00024548,2]
[406757099,1772160643269,-150.0,0.00024548,2]
[406757100,1772160643279,-200.45,0.00024548,2]
[406757101,1772160643289,-1000.0,0.00024658,2]
[406757102,1772160643298,-150.0,0.00024658,2]
[406757103,1772160643307,-152.8213546,0.00024715,2]
[406757104,1772160643317,-3498.0,0.00024811,2]
[406757105,1772160643330,-1041.0,0.00024811,2]
[406757106,1772160643340,-618.0,0.00024811,2]
[406757107,1772160643349,-1340.0,0.00024811,2]
[406757108,1772160643358,-1277.0,0.00024811,2]
[406757109,1772160643368,-921.0,0.00024811,2]
[406757110,1772160643377,-413.0,0.00024811,2]
[406757111,1772160643387,-5983.0,0.00024811,2]
[406757112,1772160643396,-2456.0,0.00024811,2]
[406757113,1772160643406,-537.34,0.00024946,30]
[406757114,1772160643416,-500.0,0.00025,2]
[406757115,1772160643425,-375.55300154,0.0002521,20]
[406757116,1772160643435,-269.3492062,0.00025402,13]
[406757118,1772160643444,-5741.61845529,0.00025408,2]